fUST/lending_fUST_20240520
["ID","MTS","AMOUNT","RATE_DAILY","PERIOD"]
[327522390,1716154107120,-500.0,0.00043835,30]
[327522391,1716154107144,-500.0,0.00043835,30]
[327522392,1716154107167,-285.94632547,0.00043835,30]
[327522393,1716154107190,-217.98,0.00043835,30]
[327522394,1716154107213,-500.0,0.00043835,30]
[327522395,1716154107236,-500.0,0.00043835,30]
[327522396,1716154107259,-500.0,0.00043835,30]
[327522397,1716154107282,-500.0,0.00043835,30]
[327522398,1716154107306,-2105.86,0.00043835,30]
[327522399,1716154107329,-500.0,0.00043835,30]
[327522400,1716154107353,-500.0,0.00043835,30]
[327522401,1716154107377,-500.0,0.00043835,30]
[327522402,1716154107399,-1001.47319909,0.00043835,30]
[327522403,1716154107422,-500.0,0.00043835,30]
[327522404,1716154107445,-500.0,0.00043835,30]
[327522405,1716154107468,-427.7927734,0.00043835,30]
[327522406,1716154107491,-754.27,0.00043835,21]
[327522407,1716154107515,-500.0,0.00043835,30]
[327522408,1716154107538,-500.0,0.00043835,30]
[327522409,1716154107562,-500.0,0.00043863,60]
[327522410,1716154107583,-500.0,0.00043917,60]
[327522411,1716154107606,-500.0,0.00043972,60]
[327522412,1716154107628,-500.0,0.00044027,60]
[327522413,1716154107651,-500.0,0.00044082,60]
[327522414,1716154107679,-1058.79,0.00044107,40]
[327522415,1716154107701,-1058.79,0.00044108,41]
[327522416,1716154107724,-1058.79,0.00044108,42]
[327522417,1716154107746,-1058.79,0.00044108,43]
[327522418,1716154107768,-205.48345572,0.00044109,31]
[327522419,1716154107790,-227.21197337,0.00044109,31]
[327522420,1716154107813,-167.0057071,0.00044109,31]
[327522421,1716154107837,-500.9333789,0.00044109,31]
[327522422,1716154107859,-500.0,0.00044109,31]
[327522423,1716154107883,-500.0,0.00044109,31]
[327522424,1716154107905,-500.0,0.00044109,31]
[327522425,1716154107928,-500.0,0.00044109,31]
[327522426,1716154107949,-418.86303873,0.00044109,31]
[327522427,1716154107972,-500.0,0.00044109,31]
[327522428,1716154107994,-500.0,0.00044109,31]
[327522429,1716154108016,-586.43584108,0.00044109,31]
[327522430,1716154108039,-159.15057185,0.00044109,31]
[327522431,1716154108062,-500.0,0.00044109,31]
[327522432,1716154108084,-500.0,0.00044109,31]
[327522433,1716154108106,-611.28564328,0.00044109,31]
[327522434,1716154108128,-500.0,0.00044109,31]
[327522435,1716154108153,-500.0,0.00044109,31]
[327522436,1716154108174,-500.0,0.00044109,31]
[327522437,1716154108197,-500.0,0.00044109,31]
[327522438,1716154108219,-500.0,0.00044109,31]
[327522439,1716154108241,-500.0,0.00044109,31]
[327522440,1716154108265,-500.0,0.00044109,31]
[327522441,1716154108287,-500.0,0.00044109,31]
[327522442,1716154108308,-500.0,0.00044109,20]
[327522443,1716154108331,-500.0,0.00044109,31]
[327522444,1716154108353,-500.0,0.00044109,31]
[327522445,1716154108375,-500.0,0.00044109,31]
[327522446,1716154108399,-501.84372558,0.00044109,31]
[327522447,1716154108420,-500.0,0.00044109,31]
[327522448,1716154108443,-500.0,0.00044109,31]
[327522449,1716154108466,-500.0,0.00044109,31]
[327522450,1716154108489,-500.0,0.00044109,31]
[327522451,1716154108512,-428.47251209,0.00044109,31]
[327522452,1716154108534,-500.0,0.00044109,31]
[327522453,1716154108555,-500.0,0.00044109,31]
[327522454,1716154108577,-500.0,0.00044109,31]
[327522455,1716154108600,-500.0,0.00044109,31]
[327522456,1716154108623,-503.24770471,0.00044109,31]
[327522457,1716154108646,-500.0,0.00044109,31]
[327522458,1716154108668,-500.0,0.00044109,31]
[327522459,1716154108695,-602.2888841,0.00044109,31]
[327522460,1716154108716,-500.0,0.00044109,31]
[327522461,1716154108738,-500.0,0.00044109,31]
[327522462,1716154108850,-500.0,0.00044109,31]
[327522463,1716154108874,-500.0,0.00044109,31]
[327522464,1716154108898,-511.39857816,0.00044109,31]
[327522465,1716154108921,-469.0324749,0.00044109,31]
[327522466,1716154108944,-500.0,0.00044109,31]
[327522467,1716154108965,-500.0,0.00044109,31]
[327522468,1716154108988,-500.0,0.00044109,31]
[327522469,1716154109010,-500.0,0.00044109,31]
[327522470,1716154109032,-500.0,0.00044109,31]
[327522471,1716154109054,-500.0,0.00044109,31]
[327522472,1716154109076,-500.0,0.00044109,31]
[327522473,1716154109098,-500.0,0.00044109,31]
[327522474,1716154109119,-500.0,0.00044109,31]
[327522475,1716154109143,-500.0,0.00044109,31]
[327522476,1716154109166,-537.25,0.00044109,31]
[327522477,1716154109189,-500.0,0.00044109,31]
[327522478,1716154109211,-500.0,0.00044109,31]
[327522479,1716154109232,-500.0,0.00044109,31]
[327522480,1716154109256,-500.0,0.00044109,31]
[327522481,1716154109278,-500.0,0.00044109,31]
[327522482,1716154109300,-500.0,0.00044109,31]
[327522483,1716154109321,-500.0,0.00044109,31]
[327522484,1716154109347,-500.0,0.00044109,31]
[327522485,1716154109371,-500.0,0.00044109,31]
[327522486,1716154109393,-500.0,0.00044109,31]
[327522487,1716154109415,-500.0,0.00044109,31]
[327522488,1716154109436,-500.0,0.00044109,31]
[327522489,1716154109460,-500.0,0.00044109,31]
[327522490,1716154109491,-500.0,0.00044109,31]
[327522491,1716154109514,-500.0,0.00044109,31]
[327522492,1716154109547,-360.4997949,0.00044109,31]
[327522493,1716154109571,-500.0,0.00044109,31]
[327522494,1716154109594,-500.0,0.00044109,31]
[327522495,1716154109617,-500.0,0.00044109,31]
[327522496,1716154109640,-500.0,0.00044109,31]
[327522497,1716154109662,-500.0,0.00044109,31]
[327522498,1716154109688,-500.0,0.00044109,31]
[327522499,1716154109712,-500.0,0.00044109,31]
[327522500,1716154109735,-500.0,0.00044109,31]
[327522501,1716154109758,-500.0,0.00044109,31]
[327522502,1716154109781,-500.0,0.00044109,31]
[327522503,1716154109805,-500.0,0.00044109,31]
[327522504,1716154109827,-425.3,0.00044109,31]
[327522505,1716154109850,-538.36,0.00044109,31]
[327522506,1716154109876,-504.44651926,0.00044109,31]
[327522507,1716154109899,-500.0,0.00044109,31]
[327522508,1716154109920,-500.0,0.00044109,30]
[327522509,1716154109943,-263.2975575,0.00044109,31]
[327522510,1716154109965,-500.0,0.00044109,30]
[327522511,1716154109987,-500.0,0.00044109,31]
[327522512,1716154110011,-500.0,0.00044109,31]
[327522513,1716154110034,-500.0,0.00044109,31]
[327522514,1716154110057,-500.0,0.00044109,31]
[327522515,1716154110081,-500.0,0.00044109,31]
[327522516,1716154110104,-925.94,0.00044109,31]
[327522517,1716154110126,-500.0,0.00044109,31]
[327522518,1716154110150,-500.0,0.00044109,31]
[327522519,1716154110173,-500.0,0.00044109,31]
[327522520,1716154110195,-500.0,0.00044109,31]
[327522521,1716154110217,-500.0,0.00044109,31]
[327522522,1716154110238,-500.0,0.00044109,31]
[327522523,1716154110260,-500.0,0.00044109,31]
[327522524,1716154110282,-500.0,0.00044109,31]
[327522525,1716154110303,-1631.99,0.00044109,31]
[327522526,1716154110325,-500.0,0.00044109,31]
[327522527,1716154110347,-500.0,0.00044109,31]
[327522528,1716154110369,-500.0,0.00044109,31]
[327522529,1716154110391,-500.0,0.00044109,31]
[327522530,1716154110412,-500.0,0.00044109,31]
[327522531,1716154110434,-550.73,0.00044109,31]
[327522532,1716154110458,-500.0,0.00044109,31]
[327522533,1716154110481,-500.0,0.00044109,31]
[327522534,1716154110504,-245.0,0.00044109,31]
[327522535,1716154110526,-5763.66,0.00044109,31]
[327522536,1716154110551,-500.0,0.00044109,31]
[327522537,1716154110574,-500.0,0.00044109,31]
[327522538,1716154110598,-500.0,0.00044109,31]
[327522539,1716154110620,-538.57668283,0.00044109,31]
[327522540,1716154110642,-500.0,0.00044109,31]
[327522541,1716154110665,-630.33823224,0.00044109,31]
[327522542,1716154110693,-501.97,0.00044109,31]
[327522543,1716154110716,-500.0,0.00044109,31]
[327522544,1716154110740,-500.0,0.00044109,31]
[327522545,1716154110764,-529.63968389,0.00044109,31]
[327522546,1716154110886,-2028.34,0.00044109,31]
[327522547,1716154110910,-500.0,0.00044109,31]
[327522548,1716154110933,-500.0,0.00044109,31]
[327522549,1716154110956,-575.53,0.00044109,31]
[327522550,1716154110980,-10396.27,0.00044109,31]
[327522551,1716154111004,-502.10477674,0.00044109,31]
[327522552,1716154111028,-500.0,0.00044109,31]
[327522553,1716154111050,-500.0,0.00044109,31]
[327522554,1716154111072,-500.0,0.00044109,31]
[327522555,1716154111095,-500.0,0.00044109,31]
[327522556,1716154111117,-904.37,0.00044109,31]
[327522557,1716154111140,-500.0,0.00044109,31]
[327522558,1716154111163,-517.6,0.00044109,31]
[327522559,1716154111186,-739.09,0.00044109,31]
[327522560,1716154111210,-524.68,0.00044109,31]
[327522561,1716154111234,-500.0,0.00044109,31]
[327522562,1716154111256,-500.0,0.00044109,31]
[327522563,1716154111279,-500.0,0.00044109,31]
[327522564,1716154111302,-630.07532615,0.00044109,31]
[327522565,1716154111324,-535.45,0.00044109,31]
[327522566,1716154111346,-500.0,0.00044109,31]
[327522567,1716154111368,-502.98910556,0.00044109,31]
[327522568,1716154111391,-500.0,0.00044109,31]
[327522569,1716154111414,-500.0,0.00044109,31]
[327522570,1716154111436,-500.0,0.00044109,31]
[327522571,1716154111459,-954.34,0.00044109,31]
[327522572,1716154111481,-500.0,0.00044109,31]
[327522573,1716154111504,-500.0,0.00044109,31]
[327522574,1716154111526,-500.0,0.00044109,31]
[327522575,1716154111548,-500.0,0.00044109,31]
[327522576,1716154111570,-500.0,0.00044109,31]
[327522577,1716154111593,-500.0,0.00044109,31]
[327522578,1716154111616,-500.0,0.00044109,31]
[327522579,1716154111641,-500.0,0.00044109,31]
[327522580,1716154111662,-1612.29,0.00044109,31]
[327522581,1716154111688,-242.4329777,0.00044109,31]
[327522582,1716154111711,-500.0,0.00044109,31]
[327522583,1716154111735,-500.0,0.00044109,31]
[327522584,1716154111758,-500.0,0.00044109,31]
[327522585,1716154111781,-689.88,0.00044109,31]
[327522586,1716154111806,-500.0,0.00044109,31]
[327522587,1716154111829,-500.0,0.00044109,31]
[327522588,1716154111852,-500.0,0.00044109,31]
[327522589,1716154111874,-500.0,0.00044109,31]
[327522590,1716154111897,-500.0,0.00044109,31]
[327522591,1716154111920,-500.0,0.00044109,31]
[327522592,1716154111943,-500.0,0.00044109,31]
[327522593,1716154111967,-890.96,0.00044109,31]
[327522594,1716154111990,-500.0,0.00044109,31]
[327522595,1716154112012,-500.0,0.00044109,31]
[327522596,1716154112036,-1024.74,0.00044109,31]
[327522597,1716154112059,-500.0,0.00044109,31]
[327522598,1716154112082,-500.0,0.00044109,31]
[327522599,1716154112106,-500.0,0.00044109,31]
[327522600,1716154112129,-500.0,0.00044109,31]
[327522601,1716154112152,-500.0,0.00044109,31]
[327522602,1716154112177,-569.18573066,0.00044109,31]
[327522603,1716154112202,-500.0,0.00044109,31]
[327522604,1716154112225,-500.0,0.00044109,31]
[327522605,1716154112247,-500.0,0.00044109,31]
[327522606,1716154112269,-402.72213468,0.00044109,31]
[327522607,1716154112294,-500.0,0.00044109,31]
[327522608,1716154112318,-500.0,0.00044109,31]
[327522609,1716154112341,-500.0,0.00044109,31]
[327522610,1716154112366,-7230.68,0.00044109,31]
[327522611,1716154112391,-307.12542869,0.00044109,31]
[327522612,1716154112414,-500.0,0.00044109,31]
[327522613,1716154112436,-500.0,0.00044109,30]
[327522614,1716154112461,-500.0,0.00044109,31]
[327522615,1716154112483,-500.0,0.00044109,31]
[327522616,1716154112507,-500.0,0.00044109,31]
[327522617,1716154112530,-500.0,0.00044109,31]
[327522618,1716154112553,-500.0,0.00044109,31]
[327522619,1716154112576,-500.0,0.00044109,31]
[327522620,1716154112600,-500.0,0.00044109,31]
[327522621,1716154112623,-2105.86,0.00044109,31]
[327522622,1716154112646,-583.01,0.00044109,31]
[327522623,1716154112670,-500.0,0.00044109,31]
[327522624,1716154112698,-754.27,0.00044109,21]
[327522625,1716154112722,-500.56346249,0.00044109,31]
[327522626,1716154112745,-500.0,0.00044109,31]
[327522628,1716154112844,-1058.79,0.00044382,44]
[327522629,1716154112886,-1058.79,0.00044382,45]
[327522630,1716154112909,-1058.79,0.00044382,46]
[327522631,1716154112931,-500.0,0.00044383,32]
[327522632,1716154112954,-500.0,0.00044383,32]
[327522633,1716154112976,-500.0,0.00044383,32]
[327522634,1716154113000,-500.0,0.00044383,32]
[327522635,1716154113023,-500.0,0.00044383,32]
[327522636,1716154113047,-500.0,0.00044383,32]
[327522637,1716154113069,-624.44,0.00044383,32]
[327522638,1716154113094,-607.26,0.00044383,32]
[327522639,1716154113119,-500.0,0.00044383,32]
[327522640,1716154113143,-500.0,0.00044383,32]
[327522641,1716154113167,-500.0,0.00044383,32]
[327522642,1716154113190,-500.0,0.00044383,32]
[327522643,1716154113213,-500.0,0.00044383,32]
[327522644,1716154113236,-500.0,0.00044383,32]
[327522645,1716154113259,-500.0,0.00044383,20]
[327522646,1716154113280,-500.0,0.00044383,32]
[327522647,1716154113303,-310.96353083,0.00044383,32]
[327522648,1716154113326,-500.0,0.00044383,32]
[327522649,1716154113349,-500.0,0.00044383,32]
[327522650,1716154113372,-543.75,0.00044383,32]
[327522651,1716154113395,-500.0,0.00044383,32]
[327522652,1716154113417,-500.0,0.00044383,32]
[327522653,1716154113441,-622.72419462,0.00044383,32]
[327522654,1716154113463,-500.0,0.00044383,32]
[327522655,1716154113486,-500.0,0.00044383,32]
[327522656,1716154113510,-275.72180288,0.00044383,32]
[327522657,1716154113533,-546.21611448,0.00044383,32]
[327522658,1716154113556,-500.0,0.00044383,32]
[327522659,1716154113579,-500.0,0.00044383,32]
[327522660,1716154113602,-500.0,0.00044383,32]
[327522661,1716154113624,-571.47,0.00044383,32]
[327522662,1716154113648,-500.0,0.00044383,32]
[327522663,1716154113672,-500.0,0.00044383,32]
[327522664,1716154113699,-500.0,0.00044383,32]
[327522665,1716154113722,-500.0,0.00044383,32]
[327522666,1716154113745,-500.0,0.00044383,32]
[327522667,1716154113768,-500.0,0.00044383,32]
[327522668,1716154113790,-500.0,0.00044383,32]
[327522669,1716154113814,-500.0,0.00044383,32]
[327522670,1716154113837,-537.25,0.00044383,32]
[327522671,1716154113860,-500.0,0.00044383,32]
[327522672,1716154113884,-500.0,0.00044383,32]
[327522673,1716154113907,-208.42690763,0.00044383,32]
[327522674,1716154113930,-500.0,0.00044383,32]
[327522675,1716154113953,-500.0,0.00044383,32]
[327522676,1716154113977,-283.35,0.00044383,32]
[327522677,1716154114001,-611.27,0.00044383,32]
[327522678,1716154114025,-500.0,0.00044383,32]
[327522679,1716154114047,-348.90967529,0.00044383,32]
[327522680,1716154114070,-500.0,0.00044383,32]
[327522681,1716154114092,-600.05914449,0.00044383,32]
[327522682,1716154114116,-500.0,0.00044383,32]
[327522683,1716154114142,-500.0,0.00044383,32]
[327522684,1716154114165,-500.0,0.00044383,32]
[327522685,1716154114189,-500.0,0.00044383,32]
[327522686,1716154114212,-500.0,0.00044383,32]
[327522687,1716154114235,-500.0,0.00044383,32]
[327522688,1716154114257,-326.71865522,0.00044383,32]
[327522689,1716154114280,-500.0,0.00044383,32]
[327522690,1716154114303,-500.0,0.00044383,32]
[327522691,1716154114325,-500.0,0.00044383,30]
[327522692,1716154114347,-500.0,0.00044383,30]
[327522693,1716154114370,-500.0,0.00044383,32]
[327522694,1716154114392,-500.0,0.00044383,32]
[327522695,1716154114414,-500.0,0.00044383,32]
[327522696,1716154114437,-500.0,0.00044383,32]
[327522697,1716154114460,-272.6,0.00044383,32]
[327522698,1716154114482,-925.94,0.00044383,32]
[327522699,1716154114504,-170.73,0.00044383,32]
[327522700,1716154114526,-500.0,0.00044383,32]
[327522701,1716154114549,-500.0,0.00044383,32]
[327522702,1716154114573,-500.0,0.00044383,32]
[327522703,1716154114597,-500.0,0.00044383,32]
[327522704,1716154114620,-1631.99,0.00044383,32]
[327522705,1716154114643,-500.0,0.00044383,32]
[327522706,1716154114666,-500.0,0.00044383,32]
[327522707,1716154114773,-527.19,0.00044383,32]
[327522708,1716154114797,-5763.66,0.00044383,32]
[327522709,1716154114837,-196.6,0.00044383,32]
[327522710,1716154114865,-500.0,0.00044383,32]
[327522711,1716154114893,-488.74673176,0.00044383,32]
[327522712,1716154114920,-501.97,0.00044383,32]
[327522713,1716154114947,-500.0,0.00044383,32]
[327522714,1716154114972,-174.05,0.00044383,32]
[327522715,1716154115003,-2028.34,0.00044383,32]
[327522716,1716154115030,-518.33,0.00044383,32]
[327522717,1716154115056,-10396.27,0.00044383,32]
[327522718,1716154115081,-500.0,0.00044383,32]
[327522719,1716154115106,-500.0,0.00044383,32]
[327522720,1716154115131,-904.37,0.00044383,32]
[327522721,1716154115158,-739.09,0.00044383,32]
[327522722,1716154115181,-524.68,0.00044383,32]
[327522723,1716154115205,-500.0,0.00044383,32]
[327522724,1716154115229,-500.0,0.00044383,32]
[327522725,1716154115252,-411.69779331,0.00044383,32]
[327522726,1716154115276,-301.36,0.00044383,32]
[327522727,1716154115298,-500.0,0.00044383,32]
[327522728,1716154115322,-954.34,0.00044383,32]
[327522729,1716154115344,-500.0,0.00044383,32]
[327522730,1716154115368,-500.0,0.00044383,32]
[327522731,1716154115392,-500.0,0.00044383,32]
[327522732,1716154115415,-1612.29,0.00044383,32]
[327522733,1716154115438,-370.92113487,0.00044383,32]
[327522734,1716154115461,-500.0,0.00044383,32]
[327522735,1716154115484,-689.88,0.00044383,32]
[327522736,1716154115508,-500.0,0.00044383,32]
[327522737,1716154115532,-476.78584661,0.00044383,32]
[327522738,1716154115566,-500.0,0.00044383,32]
[327522739,1716154115595,-500.0,0.00044383,32]
[327522740,1716154115634,-168.06541875,0.00044383,32]
[327522741,1716154115660,-890.96,0.00044383,32]
[327522742,1716154115687,-500.0,0.00044383,32]
[327522743,1716154115710,-208.11,0.00044383,32]
[327522744,1716154115734,-500.0,0.00044383,32]
[327522745,1716154115759,-1024.74,0.00044383,32]
[327522746,1716154115784,-500.0,0.00044383,32]
[327522747,1716154115808,-500.0,0.00044383,32]
[327522748,1716154115832,-500.0,0.00044383,32]
[327522749,1716154115856,-500.0,0.00044383,32]
[327522750,1716154115882,-7230.68,0.00044383,32]
[327522751,1716154115907,-500.0,0.00044383,32]
[327522752,1716154115930,-500.0,0.00044383,30]
[327522753,1716154115955,-500.0,0.00044383,32]
[327522754,1716154115979,-500.0,0.00044383,32]
[327522755,1716154116003,-500.0,0.00044383,32]
[327522756,1716154116026,-500.0,0.00044383,32]
[327522757,1716154116049,-500.0,0.00044383,32]
[327522758,1716154116073,-2105.86,0.00044383,32]
[327522759,1716154116096,-500.0,0.00044383,32]
[327522760,1716154116121,-754.27,0.00044383,21]
[327522761,1716154116144,-500.0,0.00044383,32]
[327522762,1716154116168,-1058.79,0.00044656,47]
[327522763,1716154116194,-500.0,0.00044657,33]
[327522764,1716154116217,-500.0,0.00044657,33]
[327522765,1716154116240,-329.45665679,0.00044657,33]
[327522766,1716154116263,-459.02397777,0.00044657,33]
[327522767,1716154116285,-500.0,0.00044657,33]
[327522768,1716154116308,-500.0,0.00044657,33]
[327522769,1716154116331,-500.0,0.00044657,33]
[327522770,1716154116356,-500.0,0.00044657,20]
[327522771,1716154116379,-500.0,0.00044657,33]
[327522772,1716154116403,-504.72537349,0.00044657,33]
[327522773,1716154116428,-500.0,0.00044657,33]
[327522774,1716154116451,-500.0,0.00044657,33]
[327522775,1716154116474,-500.0,0.00044657,33]
[327522776,1716154116498,-393.65,0.00044657,33]
[327522777,1716154116522,-282.37359124,0.00044657,33]
[327522778,1716154116548,-500.0,0.00044657,33]
[327522779,1716154116574,-500.0,0.00044657,33]
[327522780,1716154116598,-537.93709329,0.00044657,33]
[327522781,1716154116622,-500.0,0.00044657,33]
[327522782,1716154116647,-500.0,0.00044657,33]
[327522783,1716154116775,-500.0,0.00044657,33]
[327522784,1716154116798,-500.0,0.00044657,33]
[327522785,1716154116820,-500.0,0.00044657,33]
[327522786,1716154116844,-500.0,0.00044657,33]
[327522787,1716154116866,-500.0,0.00044657,33]
[327522788,1716154116888,-537.25,0.00044657,33]
[327522789,1716154116912,-500.0,0.00044657,33]
[327522790,1716154116935,-500.0,0.00044657,33]
[327522791,1716154116960,-500.0,0.00044657,33]
[327522792,1716154116983,-500.0,0.00044657,33]
[327522793,1716154117007,-500.0,0.00044657,33]
[327522794,1716154117032,-500.0,0.00044657,33]
[327522795,1716154117056,-500.0,0.00044657,33]
[327522796,1716154117080,-500.0,0.00044657,33]
[327522797,1716154117103,-500.0,0.00044657,33]
[327522798,1716154117129,-500.0,0.00044657,33]
[327522799,1716154117152,-500.0,0.00044657,30]
[327522800,1716154117177,-500.0,0.00044657,30]
[327522801,1716154117201,-500.0,0.00044657,33]
[327522802,1716154117223,-500.0,0.00044657,33]
[327522803,1716154117246,-500.0,0.00044657,33]
[327522804,1716154117278,-500.0,0.00044657,33]
[327522805,1716154117306,-925.94,0.00044657,33]
[327522806,1716154117330,-500.0,0.00044657,33]
[327522807,1716154117354,-500.0,0.00044657,33]
[327522808,1716154117379,-500.0,0.00044657,33]
[327522809,1716154117404,-500.0,0.00044657,33]
[327522810,1716154117427,-1631.99,0.00044657,33]
[327522811,1716154117451,-500.0,0.00044657,33]
[327522812,1716154117475,-500.0,0.00044657,33]
[327522813,1716154117501,-5763.66,0.00044657,33]
[327522814,1716154117526,-500.0,0.00044657,33]
[327522815,1716154117552,-501.97,0.00044657,33]
[327522816,1716154117577,-584.52,0.00044657,33]
[327522817,1716154117603,-2028.34,0.00044657,33]
[327522818,1716154117626,-10396.27,0.00044657,33]
[327522819,1716154117650,-500.0,0.00044657,33]
[327522820,1716154117675,-258.96,0.00044657,33]
[327522821,1716154117700,-904.37,0.00044657,33]
[327522822,1716154117723,-739.09,0.00044657,33]
[327522823,1716154117746,-524.68,0.00044657,33]
[327522824,1716154117769,-500.0,0.00044657,33]
[327522825,1716154117792,-500.0,0.00044657,33]
[327522826,1716154117815,-472.32,0.00044657,33]
[327522827,1716154117839,-954.34,0.00044657,33]
[327522828,1716154117861,-500.0,0.00044657,33]
[327522829,1716154117884,-500.0,0.00044657,33]
[327522830,1716154117908,-500.0,0.00044657,33]
[327522831,1716154117931,-1612.29,0.00044657,33]
[327522832,1716154117953,-500.0,0.00044657,33]
[327522833,1716154117977,-689.88,0.00044657,33]
[327522834,1716154118000,-500.0,0.00044657,33]
[327522835,1716154118023,-500.0,0.00044657,33]
[327522836,1716154118046,-335.72,0.00044657,33]
[327522837,1716154118068,-890.96,0.00044657,33]
[327522838,1716154118091,-500.0,0.00044657,33]
[327522839,1716154118116,-1024.74,0.00044657,33]
[327522840,1716154118139,-500.0,0.00044657,33]
[327522841,1716154118162,-500.0,0.00044657,33]
[327522842,1716154118184,-500.0,0.00044657,33]
[327522843,1716154118208,-309.84,0.00044657,33]
[327522844,1716154118232,-7230.68,0.00044657,33]
[327522845,1716154118257,-500.0,0.00044657,33]
[327522846,1716154118281,-500.0,0.00044657,30]
[327522847,1716154118306,-500.0,0.00044657,33]
[327522848,1716154118328,-500.0,0.00044657,33]
[327522849,1716154118351,-500.0,0.00044657,33]
[327522850,1716154118376,-500.0,0.00044657,33]
[327522851,1716154118401,-500.0,0.00044657,33]
[327522852,1716154118426,-2105.86,0.00044657,33]
[327522853,1716154118450,-500.0,0.00044657,33]
[327522854,1716154118474,-754.27,0.00044657,21]
[327522855,1716154118498,-1058.79,0.00044664,48]
[327522856,1716154118612,-9785.0,0.00044666,120]
[327522857,1716154118650,-433.0,0.00044877,90]
[327522858,1716154118674,-1058.79,0.0004493,49]
[327522859,1716154118701,-1058.79,0.0004493,49]
[327522860,1716154118725,-1058.79,0.0004493,49]
[327522861,1716154118749,-1058.79,0.0004493,49]
[327522862,1716154118774,-1058.87865343,0.0004493,49]
[327522863,1716154118796,-500.0,0.00044931,34]
[327522864,1716154118818,-500.0,0.00044931,34]
[327522865,1716154118840,-362.12970197,0.00044931,34]
[327522866,1716154118862,-453.31846323,0.00044931,34]
[327522867,1716154118884,-500.0,0.00044931,20]
[327522868,1716154118909,-538.01755709,0.00044931,34]
[327522869,1716154118932,-500.0,0.00044931,34]
[327522870,1716154118954,-500.0,0.00044931,34]
[327522871,1716154118976,-412.60524259,0.00044931,34]
[327522872,1716154118999,-500.0,0.00044931,34]
[327522873,1716154119023,-500.0,0.00044931,34]
[327522874,1716154119048,-500.0,0.00044931,34]
[327522875,1716154119073,-250.51454636,0.00044931,34]
[327522876,1716154119098,-500.0,0.00044931,34]
[327522877,1716154119123,-500.0,0.00044931,34]
[327522878,1716154119149,-500.0,0.00044931,34]
[327522879,1716154119174,-537.25,0.00044931,34]
[327522880,1716154119199,-500.0,0.00044931,34]
[327522881,1716154119226,-500.0,0.00044931,34]
[327522882,1716154119252,-500.0,0.00044931,34]
[327522883,1716154119276,-500.0,0.00044931,34]
[327522884,1716154119302,-500.0,0.00044931,34]
[327522885,1716154119326,-500.0,0.00044931,34]
[327522886,1716154119350,-475.30102295,0.00044931,34]
[327522887,1716154119374,-500.0,0.00044931,34]
[327522888,1716154119398,-500.0,0.00044931,34]
[327522889,1716154119422,-255.05,0.00044931,34]
[327522890,1716154119447,-500.0,0.00044931,30]